[Event "Late-Titled-Tuesday-Blitz-November-28-2023"]
[Site "Chess.com"]
[Date "2023.11.28"]
[Round "3"]
[White "acertijo08"]
[Black "Redzishchess"]
[Result "0-1"]
[WhiteElo "2279"]
[BlackElo "2516"]
[TimeControl "180+1"]
[EndTime "14:25:32 PST"]
[Termination "Redzishchess won by resignation"]

1. e4 {[%clk 0:03:00.9]} 1... c5 {[%clk 0:02:59.6]} 2. Nf3 {[%clk 0:03:00.5]}
2... d6 {[%clk 0:03:00.2]} 3. d4 {[%clk 0:03:00.5]} 3... cxd4 {[%clk 0:03:01.1]}
4. Nxd4 {[%clk 0:03:00.9]} 4... Nf6 {[%clk 0:03:02]} 5. Nc3 {[%clk 0:03:01.1]}
5... g6 {[%clk 0:03:02.6]} 6. Be3 {[%clk 0:03:00.9]} 6... Bg7 {[%clk 0:03:03]}
7. f3 {[%clk 0:03:01.1]} 7... O-O {[%clk 0:03:03.6]} 8. Qd2 {[%clk 0:03:01.4]}
8... Nc6 {[%clk 0:03:04.2]} 9. Bc4 {[%clk 0:03:01.6]} 9... Bd7 {[%clk
0:03:04.2]} 10. O-O-O {[%clk 0:03:01.6]} 10... Rc8 {[%clk 0:03:04.8]} 11. Bb3
{[%clk 0:03:02]} 11... Ne5 {[%clk 0:03:05.2]} 12. h4 {[%clk 0:03:02.2]} 12... h5
{[%clk 0:03:05]} 13. Bg5 {[%clk 0:03:02.3]} 13... Nc4 {[%clk 0:03:03.3]} 14.
Bxc4 {[%clk 0:03:02]} 14... Rxc4 {[%clk 0:03:04.2]} 15. Nb3 {[%clk 0:02:48.5]}
15... b5 {[%clk 0:03:01.9]} 16. e5 {[%clk 0:02:48]} 16... b4 {[%clk 0:02:38.2]}
17. Ne2 {[%clk 0:02:31.4]} 17... Nh7 {[%clk 0:01:31.8]} 18. exd6 {[%clk
0:02:06.5]} 18... Nxg5 {[%clk 0:01:31.3]} 19. dxe7 {[%clk 0:01:45.8]} 19... Qxe7
{[%clk 0:01:25.8]} 20. hxg5 {[%clk 0:01:44]} 20... Bf5 {[%clk 0:01:21]} 21. Ned4
{[%clk 0:01:41.9]} 21... Bxc2 {[%clk 0:00:43.9]} 22. Nxc2 {[%clk 0:01:34.2]}
22... Rfc8 {[%clk 0:00:44.1]} 23. Na1 {[%clk 0:01:34.1]} 23... Qe5 {[%clk
0:00:43.8]} 24. Qd3 {[%clk 0:01:22.5]} 24... Qxb2+ {[%clk 0:00:30.6]} 25. Kd2
{[%clk 0:01:22.6]} 25... Rd4 {[%clk 0:00:31.2]} 0-1

[Event "Late-Titled-Tuesday-Blitz-November-28-2023"]
[Site "Chess.com"]
[Date "2023.11.28"]
[Round "3"]
[White "Msb2"]
[Black "reevecanada"]
[Result "1-0"]
[WhiteElo "3032"]
[BlackElo "2646"]
[TimeControl "180+1"]
[EndTime "14:25:34 PST"]
[Termination "Msb2 won by checkmate"]

1. d4 {[%clk 0:03:00.9]} 1... d5 {[%clk 0:02:55.6]} 2. c4 {[%clk 0:03:01]} 2...
c6 {[%clk 0:02:54.9]} 3. Nf3 {[%clk 0:03:01.2]} 3... Nf6 {[%clk 0:02:53.8]} 4.
Nc3 {[%clk 0:03:02.1]} 4... dxc4 {[%clk 0:02:53.6]} 5. e4 {[%clk 0:03:02.4]}
5... b5 {[%clk 0:02:52.9]} 6. Qc2 {[%clk 0:03:03.1]} 6... e6 {[%clk 0:02:51.9]}
7. Be2 {[%clk 0:03:03.3]} 7... Be7 {[%clk 0:02:51.5]} 8. O-O {[%clk 0:03:04]}
8... O-O {[%clk 0:02:51.7]} 9. e5 {[%clk 0:03:04.6]} 9... Nd5 {[%clk 0:02:51.2]}
10. Ne4 {[%clk 0:03:05.4]} 10... Nd7 {[%clk 0:02:50.9]} 11. Neg5 {[%clk
0:03:05.2]} 11... g6 {[%clk 0:02:50.8]} 12. Qe4 {[%clk 0:03:05.2]} 12... h6
{[%clk 0:02:50.5]} 13. Nxe6 {[%clk 0:03:05.4]} 13... Qb6 {[%clk 0:02:04.6]} 14.
Nxf8 {[%clk 0:03:02]} 14... Bxf8 {[%clk 0:02:05.5]} 15. e6 {[%clk 0:02:47.4]}
15... N7f6 {[%clk 0:01:56.3]} 16. exf7+ {[%clk 0:02:47.6]} 16... Kg7 {[%clk
0:01:54.8]} 17. Qh4 {[%clk 0:02:47.8]} 17... h5 {[%clk 0:01:54.6]} 18. Ne5
{[%clk 0:02:44.1]} 18... Bf5 {[%clk 0:01:54.4]} 19. Qg5 {[%clk 0:02:39.7]} 19...
Kh7 {[%clk 0:01:43.8]} 20. g4 {[%clk 0:02:19.7]} 20... Ne4 {[%clk 0:01:34.7]}
21. Qh4 {[%clk 0:02:12.5]} 21... Be7 {[%clk 0:01:34.2]} 22. Qh3 {[%clk
0:02:09.4]} 22... Be6 {[%clk 0:01:33.9]} 23. Nxg6 {[%clk 0:01:55.5]} 23... Kxg6
{[%clk 0:01:16.8]} 24. Qxh5+ {[%clk 0:01:55.7]} 24... Kf6 {[%clk 0:01:14.9]} 25.
g5+ {[%clk 0:01:53.6]} 25... Kg7 {[%clk 0:01:13.9]} 26. Qh6+ {[%clk 0:01:53.9]}
26... Kxf7 {[%clk 0:01:13.9]} 27. Bh5+ {[%clk 0:01:54.6]} 27... Kg8 {[%clk
0:01:10.2]} 28. Qxe6+ {[%clk 0:01:54.2]} 28... Kh8 {[%clk 0:01:09.7]} 29. Qxe4
{[%clk 0:01:48.3]} 29... Rg8 {[%clk 0:01:08.5]} 30. h4 {[%clk 0:01:44.8]} 30...
Qc7 {[%clk 0:01:02.8]} 31. Qe5+ {[%clk 0:01:43.1]} 31... Qxe5 {[%clk 0:01:02.8]}
32. dxe5 {[%clk 0:01:44]} 32... Rf8 {[%clk 0:01:02.5]} 33. f4 {[%clk 0:01:43.6]}
33... Bc5+ {[%clk 0:01:01.8]} 34. Kg2 {[%clk 0:01:44.1]} 34... Nb4 {[%clk
0:01:02.4]} 35. Bg6 {[%clk 0:01:43.1]} 35... Kg7 {[%clk 0:01:00.6]} 36. Be4
{[%clk 0:01:43.2]} 36... Rd8 {[%clk 0:00:59]} 37. f5 {[%clk 0:01:41.2]} 37...
Rd4 {[%clk 0:00:58.5]} 38. f6+ {[%clk 0:01:41.3]} 38... Kf8 {[%clk 0:00:58.2]}
39. Be3 {[%clk 0:01:27.4]} 39... Nd5 {[%clk 0:00:55]} 40. Bxd4 {[%clk 0:01:27]}
40... Bxd4 {[%clk 0:00:55.9]} 41. Bxd5 {[%clk 0:01:27]} 41... cxd5 {[%clk
0:00:56.8]} 42. e6 {[%clk 0:01:27.1]} 42... Bxb2 {[%clk 0:00:56.8]} 43. e7+
{[%clk 0:01:27.2]} 43... Kf7 {[%clk 0:00:57]} 44. g6+ {[%clk 0:01:27.1]} 44...
Ke8 {[%clk 0:00:55.5]} 45. g7 {[%clk 0:01:27.3]} 45... Kf7 {[%clk 0:00:55.3]}
46. g8=Q+ {[%clk 0:01:27]} 46... Kxg8 {[%clk 0:00:55.9]} 47. e8=Q+ {[%clk
0:01:27.7]} 47... Kh7 {[%clk 0:00:56.2]} 48. Qf7+ {[%clk 0:01:28]} 48... Kh6
{[%clk 0:00:56]} 49. Qg7+ {[%clk 0:01:28.9]} 49... Kh5 {[%clk 0:00:56.5]} 50.
Qg5# {[%clk 0:01:29.8]} 1-0

[Event "Late-Titled-Tuesday-Blitz-November-28-2023"]
[Site "Chess.com"]
[Date "2023.11.28"]
[Round "3"]
[White "nicolochessit"]
[Black "Hypercar"]
[Result "0-1"]
[WhiteElo "2342"]
[BlackElo "2512"]
[TimeControl "180+1"]
[EndTime "14:25:44 PST"]
[Termination "Hypercar won on time"]

1. e4 {[%clk 0:03:00.9]} 1... c5 {[%clk 0:02:59.2]} 2. Nf3 {[%clk 0:03:00.6]}
2... e6 {[%clk 0:02:58.9]} 3. c3 {[%clk 0:02:59.4]} 3... d6 {[%clk 0:02:58.5]}
4. d4 {[%clk 0:02:59.2]} 4... cxd4 {[%clk 0:02:59.4]} 5. cxd4 {[%clk 0:02:59.7]}
5... Nf6 {[%clk 0:03:00.2]} 6. Nc3 {[%clk 0:02:59.6]} 6... Nc6 {[%clk
0:03:00.9]} 7. h3 {[%clk 0:02:52.2]} 7... Be7 {[%clk 0:03:00.5]} 8. Be3 {[%clk
0:02:50.8]} 8... O-O {[%clk 0:03:00.2]} 9. Be2 {[%clk 0:02:49.2]} 9... a6 {[%clk
0:03:00.5]} 10. O-O {[%clk 0:02:49.1]} 10... b5 {[%clk 0:03:01.2]} 11. Rc1
{[%clk 0:02:46.3]} 11... Bb7 {[%clk 0:03:00.8]} 12. a3 {[%clk 0:02:29.6]} 12...
Rc8 {[%clk 0:02:58.6]} 13. Qd2 {[%clk 0:02:20.7]} 13... Na5 {[%clk 0:02:57.3]}
14. Qd3 {[%clk 0:01:47.9]} 14... Nc4 {[%clk 0:02:47.8]} 15. Rc2 {[%clk
0:01:29.2]} 15... d5 {[%clk 0:02:38.6]} 16. e5 {[%clk 0:01:18.7]} 16... Ne4
{[%clk 0:02:38.6]} 17. Nd2 {[%clk 0:01:12.7]} 17... Nxc3 {[%clk 0:02:28.2]} 18.
bxc3 {[%clk 0:00:42.5]} 18... Nxa3 {[%clk 0:02:26.1]} 19. Ra2 {[%clk 0:00:42.8]}
19... a5 {[%clk 0:02:23.2]} 20. Nb3 {[%clk 0:00:36.4]} 20... Nc4 {[%clk
0:02:09.8]} 21. Qd1 {[%clk 0:00:27.2]} 21... a4 {[%clk 0:02:07]} 22. Bxc4 {[%clk
0:00:23.5]} 22... dxc4 {[%clk 0:01:58.7]} 23. Nd2 {[%clk 0:00:06.9]} 23... Qd5
{[%clk 0:01:57.2]} 24. Qf3 {[%clk 0:00:06.2]} 24... Qxf3 {[%clk 0:01:53.2]} 25.
Nxf3 {[%clk 0:00:07.1]} 25... Bc6 {[%clk 0:01:53.5]} 26. Rb1 {[%clk 0:00:06]}
26... Rb8 {[%clk 0:01:54.1]} 27. Bd2 {[%clk 0:00:05.7]} 27... Be4 {[%clk
0:01:48.9]} 28. Rbb2 {[%clk 0:00:04.6]} 28... a3 {[%clk 0:01:49.1]} 29. Rxa3
{[%clk 0:00:02.5]} 29... Bxa3 {[%clk 0:01:47.9]} 30. Ra2 {[%clk 0:00:02.9]}
30... b4 {[%clk 0:01:47.9]} 31. Ng5 {[%clk 0:00:03.6]} 31... Bd5 {[%clk
0:01:45.9]} 32. cxb4 {[%clk 0:00:02.9]} 32... Bxb4 {[%clk 0:01:46.8]} 33. Bxb4
{[%clk 0:00:02.8]} 33... Rxb4 {[%clk 0:01:47.7]} 34. Ra7 {[%clk 0:00:02.1]}
34... h6 {[%clk 0:01:47.8]} 35. f4 {[%clk 0:00:01.4]} 35... hxg5 {[%clk
0:01:47.7]} 0-1

[Event "Late-Titled-Tuesday-Blitz-November-28-2023"]
[Site "Chess.com"]
[Date "2023.11.28"]
[Round "3"]
[White "rasmussvane"]
[Black "GothamChess"]
[Result "1-0"]
[WhiteElo "2975"]
[BlackElo "2654"]
[TimeControl "180+1"]
[EndTime "14:25:50 PST"]
[Termination "rasmussvane won by resignation"]

1. Nf3 {[%clk 0:03:00.9]} 1... d5 {[%clk 0:02:48.2]} 2. g3 {[%clk 0:03:00.4]}
2... Nc6 {[%clk 0:02:44.4]} 3. d4 {[%clk 0:03:00]} 3... Bf5 {[%clk 0:02:44.2]}
4. Bg2 {[%clk 0:02:59.4]} 4... Nb4 {[%clk 0:02:34.9]} 5. Na3 {[%clk 0:02:59.2]}
5... e6 {[%clk 0:02:33]} 6. O-O {[%clk 0:02:58.5]} 6... h6 {[%clk 0:02:31.7]} 7.
c3 {[%clk 0:02:53.2]} 7... Nc6 {[%clk 0:02:29.4]} 8. Qa4 {[%clk 0:02:33.8]} 8...
Bd6 {[%clk 0:02:16]} 9. c4 {[%clk 0:02:24.2]} 9... Nf6 {[%clk 0:02:00.2]} 10. c5
{[%clk 0:02:13.3]} 10... Be7 {[%clk 0:01:56.2]} 11. Ne5 {[%clk 0:02:13.4]} 11...
O-O {[%clk 0:01:47.8]} 12. Nxc6 {[%clk 0:02:11.8]} 12... bxc6 {[%clk 0:01:46.7]}
13. Qxc6 {[%clk 0:02:08.5]} 13... Rb8 {[%clk 0:01:20.2]} 14. b3 {[%clk
0:02:01.8]} 14... Ne4 {[%clk 0:01:05.2]} 15. Bf4 {[%clk 0:01:55]} 15... Nc3
{[%clk 0:00:51.4]} 16. Rfe1 {[%clk 0:01:42.9]} 16... g5 {[%clk 0:00:22]} 17. Bd2
{[%clk 0:01:26.9]} 17... Ne4 {[%clk 0:00:19.2]} 18. Ba5 {[%clk 0:01:26.3]} 18...
Bf6 {[%clk 0:00:10.7]} 19. e3 {[%clk 0:01:18]} 19... Qc8 {[%clk 0:00:03.3]} 20.
Qxc7 {[%clk 0:01:15]} 20... Qa6 {[%clk 0:00:02.9]} 21. Bf1 {[%clk 0:01:13.2]}
21... Qb7 {[%clk 0:00:02.2]} 22. Qxb7 {[%clk 0:01:12.5]} 22... Rxb7 {[%clk
0:00:02.9]} 23. c6 {[%clk 0:01:11.3]} 23... Rbb8 {[%clk 0:00:02.9]} 1-0

[Event "Late-Titled-Tuesday-Blitz-November-28-2023"]
[Site "Chess.com"]
[Date "2023.11.28"]
[Round "3"]
[White "Elbebiber"]
[Black "1800_strength"]
[Result "0-1"]
[WhiteElo "2137"]
[BlackElo "2789"]
[TimeControl "180+1"]
[EndTime "14:25:50 PST"]
[Termination "1800_strength won by resignation"]

1. d4 {[%clk 0:03:00.9]} 1... g5 {[%clk 0:03:00.9]} 2. Bxg5 {[%clk 0:02:57.9]}
2... c5 {[%clk 0:02:56.7]} 3. dxc5 {[%clk 0:02:52]} 3... Bg7 {[%clk 0:02:56.7]}
4. c3 {[%clk 0:02:51.1]} 4... Na6 {[%clk 0:02:56.9]} 5. Nf3 {[%clk 0:02:41.4]}
5... Nxc5 {[%clk 0:02:57.3]} 6. e3 {[%clk 0:02:38.1]} 6... d6 {[%clk 0:02:57.6]}
7. Be2 {[%clk 0:02:37.3]} 7... Nf6 {[%clk 0:02:58.2]} 8. Nbd2 {[%clk 0:02:33.8]}
8... Qb6 {[%clk 0:02:58.8]} 9. Nb3 {[%clk 0:02:32.6]} 9... Nce4 {[%clk
0:02:52.4]} 10. Bxf6 {[%clk 0:02:28.6]} 10... Bxf6 {[%clk 0:02:53.3]} 11. Bd3
{[%clk 0:02:24.3]} 11... Nc5 {[%clk 0:02:42.1]} 12. Nxc5 {[%clk 0:02:22.4]}
12... dxc5 {[%clk 0:02:43]} 13. Qc2 {[%clk 0:02:19]} 13... Be6 {[%clk
0:02:43.1]} 14. a4 {[%clk 0:02:09.9]} 14... Bb3 {[%clk 0:02:35.4]} 15. Qe2
{[%clk 0:02:06.2]} 15... O-O-O {[%clk 0:02:27.9]} 16. a5 {[%clk 0:01:58.6]}
16... Qc6 {[%clk 0:02:24.7]} 17. O-O {[%clk 0:01:46.3]} 17... Rhg8 {[%clk
0:02:24.5]} 18. Kh1 {[%clk 0:01:43.4]} 18... Qe6 {[%clk 0:01:49.6]} 19. a6
{[%clk 0:01:31.4]} 19... b6 {[%clk 0:01:28.2]} 20. Rfe1 {[%clk 0:01:29.9]} 20...
Rxg2 {[%clk 0:01:11.4]} 21. Kxg2 {[%clk 0:01:20.7]} 21... Qg4+ {[%clk
0:01:11.9]} 22. Kh1 {[%clk 0:01:18]} 22... Rxd3 {[%clk 0:01:12]} 23. Qxd3 {[%clk
0:01:08.2]} 23... Qxf3+ {[%clk 0:01:11.6]} 24. Kg1 {[%clk 0:01:08.7]} 24... Bd5
{[%clk 0:01:05.6]} 25. Kf1 {[%clk 0:01:02.1]} 25... c4 {[%clk 0:00:43.2]} 26.
Qxh7 {[%clk 0:00:59.5]} 26... Qg2+ {[%clk 0:00:39.7]} 27. Ke2 {[%clk 0:00:59.5]}
27... Bf3+ {[%clk 0:00:39.9]} 28. Kd2 {[%clk 0:00:47.5]} 28... Qxf2+ {[%clk
0:00:40.8]} 0-1

[Event "Late-Titled-Tuesday-Blitz-November-28-2023"]
[Site "Chess.com"]
[Date "2023.11.28"]
[Round "3"]
[White "laziestwin"]
[Black "KorolDimitriy75"]
[Result "1-0"]
[WhiteElo "2608"]
[BlackElo "2304"]
[TimeControl "180+1"]
[EndTime "14:25:54 PST"]
[Termination "laziestwin won by checkmate"]

1. d4 {[%clk 0:03:00.9]} 1... Nf6 {[%clk 0:02:59]} 2. c4 {[%clk 0:03:01.1]} 2...
c5 {[%clk 0:02:59.2]} 3. d5 {[%clk 0:03:01]} 3... b5 {[%clk 0:02:59.5]} 4. cxb5
{[%clk 0:03:00.6]} 4... a6 {[%clk 0:02:59.9]} 5. bxa6 {[%clk 0:03:00.7]} 5... g6
{[%clk 0:02:59.9]} 6. Nc3 {[%clk 0:03:01.2]} 6... Bxa6 {[%clk 0:03:00.5]} 7. e4
{[%clk 0:03:01.4]} 7... Bxf1 {[%clk 0:03:01.4]} 8. Kxf1 {[%clk 0:03:02.1]} 8...
d6 {[%clk 0:03:02.2]} 9. g3 {[%clk 0:03:02.7]} 9... Bg7 {[%clk 0:03:02.8]} 10.
Kg2 {[%clk 0:03:03]} 10... O-O {[%clk 0:03:03.7]} 11. Nf3 {[%clk 0:03:02.9]}
11... Nbd7 {[%clk 0:03:03.9]} 12. h3 {[%clk 0:03:01.8]} 12... Ra6 {[%clk
0:03:03.1]} 13. Qe2 {[%clk 0:03:01]} 13... Qa8 {[%clk 0:03:02.9]} 14. Bf4 {[%clk
0:02:59]} 14... Nb6 {[%clk 0:03:02.8]} 15. Rhd1 {[%clk 0:02:58.2]} 15... Na4
{[%clk 0:03:02.4]} 16. Nxa4 {[%clk 0:02:57.4]} 16... Rxa4 {[%clk 0:03:03.3]} 17.
e5 {[%clk 0:02:57.7]} 17... Nxd5 {[%clk 0:03:01.8]} 18. exd6 {[%clk 0:02:57.6]}
18... Nxf4+ {[%clk 0:02:25.5]} 19. gxf4 {[%clk 0:02:57.2]} 19... exd6 {[%clk
0:02:25.8]} 20. Rxd6 {[%clk 0:02:56.9]} 20... Rxa2 {[%clk 0:02:04.5]} 21. Rxa2
{[%clk 0:02:56]} 21... Qxa2 {[%clk 0:02:05.4]} 22. Ne5 {[%clk 0:02:55.3]} 22...
Rb8 {[%clk 0:01:20.8]} 23. Nc6 {[%clk 0:00:48.7]} 23... Rxb2 {[%clk 0:00:52.8]}
24. Ne7+ {[%clk 0:00:45.8]} 24... Kh8 {[%clk 0:00:33.6]} 25. Rd8+ {[%clk
0:00:46.7]} 25... Bf8 {[%clk 0:00:33.5]} 26. Qe5+ {[%clk 0:00:47.6]} 26... f6
{[%clk 0:00:29.3]} 27. Qxf6# {[%clk 0:00:48.5]} 1-0

[Event "Late-Titled-Tuesday-Blitz-November-28-2023"]
[Site "Chess.com"]
[Date "2023.11.28"]
[Round "3"]
[White "Felix-Rose"]
[Black "katharinareinecke"]
[Result "1-0"]
[WhiteElo "2340"]
[BlackElo "1995"]
[TimeControl "180+1"]
[EndTime "14:25:59 PST"]
[Termination "Felix-Rose won by resignation"]

1. e4 {[%clk 0:03:00.1]} 1... c6 {[%clk 0:03:00.1]} 2. d4 {[%clk 0:03:00]} 2...
d5 {[%clk 0:03:00]} 3. e5 {[%clk 0:03:00.5]} 3... Bf5 {[%clk 0:02:59.3]} 4. h4
{[%clk 0:03:00.9]} 4... h5 {[%clk 0:02:58.3]} 5. Bd3 {[%clk 0:03:01]} 5... Bxd3
{[%clk 0:02:57.8]} 6. Qxd3 {[%clk 0:03:01.9]} 6... e6 {[%clk 0:02:58.1]} 7. Bg5
{[%clk 0:03:02.1]} 7... Be7 {[%clk 0:02:57.3]} 8. Nf3 {[%clk 0:03:02]} 8... Nh6
{[%clk 0:02:54.6]} 9. Nc3 {[%clk 0:03:00]} 9... Nf5 {[%clk 0:02:54.5]} 10. Ne2
{[%clk 0:02:54.5]} 10... c5 {[%clk 0:02:53.4]} 11. dxc5 {[%clk 0:02:50.5]} 11...
Nc6 {[%clk 0:02:52.8]} 12. c3 {[%clk 0:02:47.7]} 12... Qc7 {[%clk 0:02:46.9]}
13. Bxe7 {[%clk 0:02:41.9]} 13... Kxe7 {[%clk 0:02:43.4]} 14. Ned4 {[%clk
0:02:09.6]} 14... Nxe5 {[%clk 0:02:25.2]} 15. Nxf5+ {[%clk 0:02:07.2]} 15...
exf5 {[%clk 0:02:25]} 16. Qxd5 {[%clk 0:02:02.1]} 16... Nxf3+ {[%clk 0:02:24.6]}
17. Qxf3 {[%clk 0:02:01.9]} 17... Qxc5 {[%clk 0:02:24.6]} 18. Qxb7+ {[%clk
0:02:01.2]} 18... Kf6 {[%clk 0:02:14.4]} 19. O-O-O {[%clk 0:01:57.5]} 19... Rhd8
{[%clk 0:02:08.9]} 20. Qf3 {[%clk 0:01:31.7]} 20... g6 {[%clk 0:01:58.2]} 21.
Rxd8 {[%clk 0:01:20.8]} 21... Rxd8 {[%clk 0:01:57.5]} 22. Rd1 {[%clk 0:01:20.5]}
22... Rxd1+ {[%clk 0:01:52.7]} 23. Kxd1 {[%clk 0:01:09.5]} 23... Qb6 {[%clk
0:01:46.2]} 24. Kc2 {[%clk 0:01:04.2]} 24... a5 {[%clk 0:01:41.1]} 25. Qf4
{[%clk 0:01:03]} 25... Qe6 {[%clk 0:01:36.2]} 26. Qd4+ {[%clk 0:01:01.2]} 26...
Ke7 {[%clk 0:01:32.9]} 27. Qe3 {[%clk 0:00:57.9]} 27... Kd6 {[%clk 0:01:25.5]}
28. Qb6+ {[%clk 0:00:53.9]} 28... Kd7 {[%clk 0:01:20]} 29. Qxe6+ {[%clk
0:00:52.7]} 29... fxe6 {[%clk 0:01:20.1]} 30. Kd3 {[%clk 0:00:52.3]} 30... e5
{[%clk 0:01:20.2]} 31. f3 {[%clk 0:00:52.3]} 31... Kc6 {[%clk 0:01:19.8]} 32. a4
{[%clk 0:00:51.4]} 32... Kc5 {[%clk 0:01:19.1]} 33. b3 {[%clk 0:00:50.8]} 33...
Kd5 {[%clk 0:01:18.4]} 34. b4 {[%clk 0:00:50.2]} 34... e4+ {[%clk 0:01:15]} 35.
fxe4+ {[%clk 0:00:50.7]} 35... fxe4+ {[%clk 0:01:15.1]} 36. Ke3 {[%clk
0:00:51.1]} 36... Kc4 {[%clk 0:01:04.1]} 37. bxa5 {[%clk 0:00:50.6]} 37... Kxc3
{[%clk 0:01:03.2]} 38. a6 {[%clk 0:00:50.6]} 1-0

[Event "Late-Titled-Tuesday-Blitz-November-28-2023"]
[Site "Chess.com"]
[Date "2023.11.28"]
[Round "3"]
[White "TanitoluwaAps116"]
[Black "ploxoi"]
[Result "0-1"]
[WhiteElo "2688"]
[BlackElo "2467"]
[TimeControl "180+1"]
[EndTime "14:26:03 PST"]
[Termination "ploxoi won on time"]

1. e4 {[%clk 0:03:00.9]} 1... c5 {[%clk 0:02:58.7]} 2. Nf3 {[%clk 0:03:00.7]}
2... e6 {[%clk 0:02:57]} 3. c3 {[%clk 0:02:59.6]} 3... d5 {[%clk 0:02:55.3]} 4.
exd5 {[%clk 0:02:59.2]} 4... Qxd5 {[%clk 0:02:56.2]} 5. d4 {[%clk 0:02:59.1]}
5... Nf6 {[%clk 0:02:57]} 6. Na3 {[%clk 0:02:59.2]} 6... Nc6 {[%clk 0:02:51.5]}
7. Be3 {[%clk 0:02:58.3]} 7... cxd4 {[%clk 0:02:50.6]} 8. Nb5 {[%clk 0:02:58.4]}
8... Qd8 {[%clk 0:02:51.3]} 9. Nbxd4 {[%clk 0:02:54.2]} 9... Nxd4 {[%clk
0:02:51]} 10. Bxd4 {[%clk 0:02:54]} 10... a6 {[%clk 0:02:50.2]} 11. Bd3 {[%clk
0:02:54.5]} 11... Be7 {[%clk 0:02:48.3]} 12. O-O {[%clk 0:02:54.9]} 12... O-O
{[%clk 0:02:48.7]} 13. Qe2 {[%clk 0:02:55]} 13... h6 {[%clk 0:02:47.4]} 14. Rad1
{[%clk 0:02:55.3]} 14... Qc7 {[%clk 0:02:44.7]} 15. Be5 {[%clk 0:02:53]} 15...
Qa5 {[%clk 0:02:42.3]} 16. Bb1 {[%clk 0:02:39.9]} 16... g6 {[%clk 0:02:27.9]}
17. Rfe1 {[%clk 0:02:28.4]} 17... b5 {[%clk 0:02:23.8]} 18. Nd4 {[%clk
0:02:06.6]} 18... Bb7 {[%clk 0:02:21.7]} 19. Qc2 {[%clk 0:01:50.5]} 19... Bd5
{[%clk 0:02:15.7]} 20. Nxe6 {[%clk 0:01:34.1]} 20... Bxe6 {[%clk 0:02:07.5]} 21.
Bxf6 {[%clk 0:01:34.2]} 21... Bf5 {[%clk 0:02:06.6]} 22. Qd2 {[%clk 0:01:02.9]}
22... Bxf6 {[%clk 0:02:02.3]} 23. Bxf5 {[%clk 0:01:03.2]} 23... gxf5 {[%clk
0:02:02.6]} 24. Qxh6 {[%clk 0:01:02.4]} 24... Bg7 {[%clk 0:02:00.5]} 25. Qg5
{[%clk 0:00:51.5]} 25... Rad8 {[%clk 0:01:58.4]} 26. Rc1 {[%clk 0:00:43]} 26...
Qxa2 {[%clk 0:01:33.3]} 27. Re3 {[%clk 0:00:31]} 27... Qd5 {[%clk 0:01:32.7]}
28. Rce1 {[%clk 0:00:18.6]} 28... Rd6 {[%clk 0:01:33.2]} 29. Qh5 {[%clk
0:00:09.9]} 29... Rg6 {[%clk 0:01:31.6]} 30. Rg3 {[%clk 0:00:07.2]} 30... Rxg3
{[%clk 0:01:29]} 31. hxg3 {[%clk 0:00:08.1]} 31... Qd2 {[%clk 0:01:22.3]} 32.
Re3 {[%clk 0:00:02.8]} 32... Qxb2 {[%clk 0:01:22.2]} 0-1

[Event "Late-Titled-Tuesday-Blitz-November-28-2023"]
[Site "Chess.com"]
[Date "2023.11.28"]
[Round "3"]
[White "jcibarra"]
[Black "Koksal06"]
[Result "1-0"]
[WhiteElo "2910"]
[BlackElo "2624"]
[TimeControl "180+1"]
[EndTime "14:26:34 PST"]
[Termination "jcibarra won by resignation"]

1. e4 {[%clk 0:03:00.9]} 1... e5 {[%clk 0:03:00.1]} 2. Nf3 {[%clk 0:03:00.5]}
2... Nf6 {[%clk 0:03:00.6]} 3. Nc3 {[%clk 0:03:00.3]} 3... Nc6 {[%clk
0:02:53.6]} 4. h3 {[%clk 0:02:58.6]} 4... Bb4 {[%clk 0:02:44.6]} 5. Nd5 {[%clk
0:02:55.9]} 5... Bc5 {[%clk 0:02:44.5]} 6. c3 {[%clk 0:02:54.8]} 6... O-O {[%clk
0:02:44.5]} 7. d3 {[%clk 0:02:51]} 7... d6 {[%clk 0:02:43.1]} 8. Bg5 {[%clk
0:02:49.8]} 8... Be6 {[%clk 0:02:38.9]} 9. Nxf6+ {[%clk 0:02:38.9]} 9... gxf6
{[%clk 0:02:39.8]} 10. Bh6 {[%clk 0:02:39]} 10... Re8 {[%clk 0:02:38.9]} 11. Be2
{[%clk 0:02:19.4]} 11... d5 {[%clk 0:02:32.4]} 12. O-O {[%clk 0:02:03.3]} 12...
dxe4 {[%clk 0:02:32.1]} 13. dxe4 {[%clk 0:02:04.2]} 13... Qxd1 {[%clk
0:02:31.5]} 14. Rfxd1 {[%clk 0:02:05.1]} 14... Rad8 {[%clk 0:02:25.5]} 15. b4
{[%clk 0:01:56.1]} 15... Bf8 {[%clk 0:02:24.3]} 16. Be3 {[%clk 0:01:51.4]} 16...
Rxd1+ {[%clk 0:02:20.6]} 17. Bxd1 {[%clk 0:01:51.2]} 17... Bc4 {[%clk
0:02:16.7]} 18. Nd2 {[%clk 0:01:45.4]} 18... Bd3 {[%clk 0:02:14.4]} 19. Bb3
{[%clk 0:01:41.5]} 19... a5 {[%clk 0:01:47.6]} 20. a3 {[%clk 0:01:30.2]} 20...
Ra8 {[%clk 0:01:47]} 21. Rc1 {[%clk 0:01:26.6]} 21... axb4 {[%clk 0:01:45.1]}
22. axb4 {[%clk 0:01:27.5]} 22... Kg7 {[%clk 0:01:15.6]} 23. f3 {[%clk
0:01:27.1]} 23... Kg6 {[%clk 0:01:12.9]} 24. Kf2 {[%clk 0:01:23.4]} 24... Ra3
{[%clk 0:01:08.5]} 25. g3 {[%clk 0:01:20.2]} 25... f5 {[%clk 0:00:56]} 26. Bd5
{[%clk 0:01:11.2]} 26... fxe4 {[%clk 0:00:53.6]} 27. fxe4 {[%clk 0:01:07.2]}
27... f6 {[%clk 0:00:49.4]} 28. Nf3 {[%clk 0:00:54.2]} 28... Ne7 {[%clk
0:00:26.4]} 29. Nh4+ {[%clk 0:00:53.7]} 29... Kg7 {[%clk 0:00:26.5]} 30. Bxb7
{[%clk 0:00:48]} 30... Ra7 {[%clk 0:00:24.8]} 31. Bxa7 {[%clk 0:00:29.9]} 1-0